[Event "XXXI Torre Memorial 2019"]
[Site "Merida"]
[Date "2019.12.18"]
[Round "9.10"]
[White "Obregon Rivero, Juan Carlos"]
[Black "Vitier Vazquez, Cristian"]
[Result "1/2-1/2"]
[ECO "A37"]
[WhiteElo "2513"]
[BlackElo "2405"]
[Annotator "ChessBase"]
[PlyCount "99"]
[EventDate "2019.12.13"]
[EventType "swiss"]
[EventCountry "MEX"]
[SourceTitle "playchess.com"]
[Source "ChessBase"]
[SourceQuality "1"]
[TimeControl "5400+30"]

1. c4 {[%emt 0:00:00]} c5 {[%emt 0:00:00]} 2. g3 {[%emt 0:00:30]} Nc6 {[%emt 0:00:30]} 3. Bg2 {[%emt 0:00:30]} g6 {[%emt 0:00:16]} 4. Nc3 {[%emt 0:00:06]} Bg7 {[%emt 0:00:06]} 5. Nf3 {[%emt 0:00:17]} d6 {[%emt 0:00:31]} 6. O-O {[%emt 0:00:08]} e6 {[%emt 0:00:10]} 7. d3 {[%emt 0:01:42]} Nge7 {[%emt 0:00:10]} 8. Bd2 {[%emt 0:00:05]} b6 {[%emt 0:01:47]} 9. a3 {[%emt 0:00:05]} Bb7 {[%emt 0:00:08]} 10. Rb1 {[%emt 0:00:08]} Qd7 {[%emt 0:00:21]} 11. b4 {[%emt 0:00:07]} Rd8 {[%emt 0:00:18]} 12. Qa4 {[%emt 0:01:23]} Ba8 {[%emt 0:00:45]} 13. Nb5 {[%emt 0:03:17]} O-O {[%emt 0:02:58]} 14. Rfd1 {[%emt 0:00:46]} h6 {[%emt 0:11:28]} 15. e3 {[%emt 0:00:20]} e5 {[%emt 0:08:57]} 16. Bc3 {[%emt 0:01:25]} g5 {[%emt 0:00:48]} 17. bxc5 {[%emt 0:03:51]} dxc5 {[%emt 0:00:55]} 18. Ba1 {[%emt 0:05:44]} Ng6 {[%emt 0:15:14]} 19. Nc3 {[%emt 0:22:29]} Nce7 {[%emt 0:03:07]} 20. Qxd7 {[%emt 0:00:30]} Rxd7 {[%emt 0:00:07]} 21. e4 {[%emt 0:02:57]} f5 {[%emt 0:03:10]} 22. Ne1 {[%emt 0:00:27]} g4 {[%emt 0:04:53]} 23. a4 {[%emt 0:12:09]} f4 {[%emt 0:08:44]} 24. f3 {[%emt 0:00:30]} h5 {[%emt 0:01:09]} 25. a5 {[%emt 0:00:17]} bxa5 {[%emt 0:00:39]} 26. Na4 {[%emt 0:06:01]} fxg3 {[%emt 0:00:19]} 27. Nxc5 {[%emt 0:03:20]} gxh2+ {[%emt 0:00:26]} 28. Kxh2 {[%emt 0:00:27]} Rd6 {[%emt 0:00:43]} 29. d4 {[%emt 0:06:30]} exd4 {[%emt 0:01:53]} 30. Ned3 Nh4 {[%emt 0:09:28]} 31. fxg4 {[%emt 0:01:17]} Nxg2 {[%emt 0:00:17]} 32. Kxg2 {[%emt 0:00:22]} hxg4 {[%emt 0:00:09]} 33. Rf1 {[%emt 0:00:21]} Rxf1 {[%emt 0:07:20]} 34. Rxf1 {[%emt 0:00:25]} Ng6 {[%emt 0:00:44]} 35. Kg3 {[%emt 0:00:39]} Ne5 {[%emt 0:05:59]} 36. Nxe5 {[%emt 0:03:53]} Bxe5+ {[%emt 0:00:01]} 37. Kxg4 {[%emt 0:00:18]} Rf6 {[%emt 0:00:35]} 38. Rxf6 {[%emt 0:01:45]} Bxf6 {[%emt 0:00:02]} 39. Kf3 {[%emt 0:01:33]} Kf7 {[%emt 0:01:15]} 40. Bb2 {[%emt 0:06:01]} Be5 {[%emt 0:01:55]} 41. Ke2 {[%emt 0:01:26]} d3+ {[%emt 0:03:28]} 42. Nxd3 {[%emt 0:00:09]} Bxb2 {[%emt 0:00:03]} 43. Nxb2 {[%emt 0:00:07]} Bxe4 {[%emt 0:00:10]} 44. Kd2 {[%emt 0:00:00]} Ke6 {[%emt 0:00:32]} 45. Kc3 {[%emt 0:00:00]} Kd6 46. Kd4 Bc2 {[%emt 0:00:57]} 47. Kc3 {[%emt 0:00:45]} Be4 48. Kd4 Bc2 {[%emt 0:01:35]} 49. Kc3 {[%emt 0:00:24]} Be4 50. Kd4 1/2-1/2

[Event "XXXI Torre Memorial 2019"]
[Site "Merida"]
[Date "2019.12.18"]
[Round "9.11"]
[White "Hevia Alejano, Carlos Antonio"]
[Black "Leon Valdes, Jony Wilson"]
[Result "1/2-1/2"]
[ECO "C14"]
[WhiteElo "2465"]
[BlackElo "2398"]
[Annotator "ChessBase"]
[PlyCount "50"]
[EventDate "2019.12.13"]
[EventType "swiss"]
[EventCountry "MEX"]
[SourceTitle "playchess.com"]
[Source "ChessBase"]
[SourceQuality "1"]
[TimeControl "5400+30"]

1. e4 {[%emt 0:00:00]} e6 {[%emt 0:00:56]} 2. d4 {[%emt 0:00:00]} d5 {[%emt 0:00:09]} 3. Nc3 {[%emt 0:00:00]} Nf6 {[%emt 0:00:03]} 4. Bg5 {[%emt 0:00:00]} Be7 {[%emt 0:00:03]} 5. e5 {[%emt 0:00:00]} Nfd7 {[%emt 0:00:03]} 6. Bxe7 {[%emt 0:00:01]} Qxe7 {[%emt 0:00:05]} 7. f4 {[%emt 0:00:19]} a6 {[%emt 0:00:04]} 8. Nf3 {[%emt 0:00:05]} b6 {[%emt 0:00:03]} 9. Qd2 {[%emt 0:00:14]} c5 {[%emt 0:00:03]} 10. Bd3 {[%emt 0:00:50]} Nc6 {[%emt 0:00:05]} 11. O-O {[%emt 0:00:08]} Bb7 {[%emt 0:00:05]} 12. a3 {[%emt 0:00:09]} O-O-O {[%emt 0:00:18]} 13. b3 {[%emt 0:01:49]} Kb8 {[%emt 0:00:04]} 14. Ne2 {[%emt 0:00:31]} Rc8 {[%emt 0:00:17]} 15. c3 {[%emt 0:01:29]} Na5 {[%emt 0:00:12]} 16. Bc2 {[%emt 0:00:27]} h6 {[%emt 0:00:30]} 17. Rfc1 {[%emt 0:03:59]} Ka7 {[%emt 0:00:27]} 18. a4 {[%emt 0:00:22]} Rhg8 {[%emt 0:00:14]} 19. Qe3 {[%emt 0:00:58]} g5 {[%emt 0:00:18]} 20. Rab1 {[%emt 0:01:24]} f6 {[%emt 0:00:20]} 21. exf6 {[%emt 0:00:34]} Qxf6 {[%emt 0:00:13]} 22. fxg5 {[%emt 0:02:57]} hxg5 {[%emt 0:00:06]} 23. Rf1 {[%emt 0:00:08]} Qe7 {[%emt 0:01:27]} 24. Rbe1 {[%emt 0:00:40]} cxd4 {[%emt 0:00:40]} 25. Nexd4 {[%emt 0:00:14]} e5 1/2-1/2

[Event "XXXI Torre Memorial 2019"]
[Site "Merida"]
[Date "2019.12.18"]
[Round "9.12"]
[White "Coto Mederos, Michel"]
[Black "Rodriguez Vila, Andres"]
[Result "0-1"]
[ECO "A22"]
[WhiteElo "2352"]
[BlackElo "2463"]
[Annotator "ChessBase"]
[PlyCount "80"]
[EventDate "2019.12.13"]
[EventType "swiss"]
[EventCountry "MEX"]
[SourceTitle "playchess.com"]
[Source "ChessBase"]
[SourceQuality "1"]
[TimeControl "5400+30"]

1. c4 {[%emt 0:00:00]} e5 {[%emt 0:04:36]} 2. Nc3 {[%emt 0:00:07]} Nf6 {[%emt 0:00:40]} 3. Nf3 {[%emt 0:00:16]} d6 {[%emt 0:00:26]} 4. e4 {[%emt 0:05:00]} g6 {[%emt 0:00:18]} 5. d3 {[%emt 0:06:46]} Bg7 {[%emt 0:00:11]} 6. Be2 {[%emt 0:00:06]} O-O {[%emt 0:00:06]} 7. O-O {[%emt 0:00:06]} a5 {[%emt 0:00:18]} 8. h3 {[%emt 0:01:00]} c6 {[%emt 0:00:07]} 9. Be3 {[%emt 0:05:08]} Na6 {[%emt 0:01:09]} 10. Rc1 {[%emt 0:08:27]} Qe7 {[%emt 0:04:00]} 11. a3 {[%emt 0:04:33]} Nd7 {[%emt 0:02:32]} 12. d4 {[%emt 0:05:09]} f5 {[%emt 0:03:16]} 13. dxe5 {[%emt 0:01:58]} dxe5 {[%emt 0:00:38]} 14. exf5 {[%emt 0:01:45]} gxf5 {[%emt 0:00:04]} 15. Bg5 {[%emt 0:00:28]} Qe6 {[%emt 0:03:44]} 16. Re1 {[%emt 0:11:22]} Nac5 {[%emt 0:13:56]} 17. Bf1 {[%emt 0:14:57]} e4 {[%emt 0:10:58]} 18. Be3 {[%emt 0:08:49]} a4 {[%emt 0:05:39]} 19. Nd2 {[%emt 0:05:50]} Qg6 {[%emt 0:02:06]} 20. f4 {[%emt 0:03:48]} Qg3 {[%emt 0:01:32]} 21. b4 {[%emt 0:11:11]} Ne6 {[%emt 0:02:44]} 22. Ndxe4 {[%emt 0:00:45]} fxe4 {[%emt 0:00:17]} 23. Nxe4 {[%emt 0:00:03]} Qg6 {[%emt 0:00:16]} 24. Nd6 {[%emt 0:01:45]} Nxf4 {[%emt 0:16:58]} 25. Bxf4 {[%emt 0:00:07]} Rxf4 {[%emt 0:01:00]} 26. Re8+ {[%emt 0:00:14]} Nf8 {[%emt 0:03:13]} 27. Rxc8 {[%emt 0:00:26]} Bd4+ {[%emt 0:01:24]} 28. Kh1 {[%emt 0:00:33]} Rxc8 {[%emt 0:01:31]} 29. Nxc8 {[%emt 0:00:02]} Qe6 {[%emt 0:01:13]} 30. g3 {[%emt 0:01:27]} Qe3 {[%emt 0:05:01]} 31. Bg2 {[%emt 0:00:40]} Qxg3 {[%emt 0:00:37]} 32. Ne7+ {[%emt 0:00:47]} Kf7 {[%emt 0:02:51]} 33. Nf5 {[%emt 0:00:23]} Rxf5 {[%emt 0:00:54]} 34. Qxd4 {[%emt 0:00:13]} Qxa3 {[%emt 0:00:54]} 35. Rd1 {[%emt 0:01:16]} Qxb4 {[%emt 0:01:30]} 36. Qg4 {[%emt 0:00:09]} Rf6 {[%emt 0:01:57]} 37. Qh5+ {[%emt 0:00:27]} Kg8 {[%emt 0:00:16]} 38. Be4 {[%emt 0:00:50]} Qe7 {[%emt 0:01:07]} 39. Rg1+ {[%emt 0:01:08]} Kh8 {[%emt 0:00:14]} 40. Qg5 {[%emt 0:00:22]} Qxe4+ {[%emt 0:00:09]} 0-1

[Event "XXXI Torre Memorial 2019"]
[Site "Merida"]
[Date "2019.12.18"]
[Round "9.13"]
[White "Fernandez De La Vara, Arnaldo"]
[Black "Perez Leiva, Jerzy Jesus"]
[Result "1-0"]
[ECO "A41"]
[WhiteElo "2463"]
[BlackElo "2373"]
[Annotator "ChessBase"]
[PlyCount "85"]
[EventDate "2019.12.13"]
[EventType "swiss"]
[EventCountry "MEX"]
[SourceTitle "playchess.com"]
[Source "ChessBase"]
[SourceQuality "1"]
[TimeControl "5400+30"]

1. c4 {[%emt 0:03:08]} g6 {[%emt 0:00:00]} 2. d4 {[%emt 0:00:21]} Bg7 {[%emt 0:00:07]} 3. Nc3 {[%emt 0:00:06]} d6 {[%emt 0:00:16]} 4. Nf3 {[%emt 0:00:31]} Bg4 {[%emt 0:00:21]} 5. g3 {[%emt 0:01:16]} Bxf3 {[%emt 0:00:28]} 6. exf3 {[%emt 0:00:07]} c6 {[%emt 0:00:17]} 7. Be3 {[%emt 0:01:49]} Nd7 {[%emt 0:00:22]} 8. Bg2 {[%emt 0:01:59]} Nh6 {[%emt 0:01:09]} 9. g4 {[%emt 0:08:39]} Qa5 {[%emt 0:04:35]} 10. h4 {[%emt 0:27:47]} Nb6 {[%emt 0:16:34]} 11. Qb3 {[%emt 0:05:42]} d5 {[%emt 0:06:44]} 12. Bf1 {[%emt 0:11:42]} c5 {[%emt 0:15:22]} 13. Bd2 {[%emt 0:11:12]} dxc4 {[%emt 0:12:17]} 14. Bxc4 {[%emt 0:00:06]} O-O {[%emt 0:08:53]} 15. Nd1 {[%emt 0:01:49]} Qa4 {[%emt 0:00:40]} 16. Qxa4 {[%emt 0:00:21]} Nxa4 {[%emt 0:00:02]} 17. Bb5 {[%emt 0:00:08]} Nb6 {[%emt 0:00:31]} 18. dxc5 {[%emt 0:00:10]} Nd5 {[%emt 0:00:11]} 19. h5 {[%emt 0:05:18]} g5 {[%emt 0:00:14]} 20. Bxg5 {[%emt 0:00:15]} f5 {[%emt 0:02:36]} 21. Bd7 {[%emt 0:08:15]} Nb4 {[%emt 0:01:47]} 22. O-O {[%emt 0:00:24]} Nc2 {[%emt 0:04:02]} 23. Ne3 {[%emt 0:02:07]} Nxa1 {[%emt 0:00:05]} 24. Rxa1 {[%emt 0:00:30]} fxg4 {[%emt 0:01:32]} 25. fxg4 {[%emt 0:00:23]} Kh8 {[%emt 0:02:57]} 26. Rd1 {[%emt 0:01:23]} Rg8 {[%emt 0:06:52]} 27. Be6 {[%emt 0:01:06]} Rgd8 {[%emt 0:00:12]} 28. Rxd8+ {[%emt 0:00:16]} Rxd8 {[%emt 0:00:02]} 29. b4 {[%emt 0:00:28]} a6 {[%emt 0:03:36]} 30. a4 {[%emt 0:00:45]} Ng8 {[%emt 0:05:00]} 31. b5 {[%emt 0:00:36]} Nf6 {[%emt 0:00:43]} 32. c6 {[%emt 0:01:11]} bxc6 {[%emt 0:00:03]} 33. bxc6 {[%emt 0:00:12]} Ne8 {[%emt 0:00:12]} 34. Bf4 {[%emt 0:01:03]} Rd4 {[%emt 0:00:23]} 35. Bg3 {[%emt 0:00:44]} Re4 {[%emt 0:02:06]} 36. Bd7 {[%emt 0:00:11]} Be5 {[%emt 0:00:07]} 37. Bxe5+ {[%emt 0:00:14]} Rxe5 {[%emt 0:00:08]} 38. Bxe8 {[%emt 0:00:17]} Rc5 {[%emt 0:00:16]} 39. Nf5 {[%emt 0:00:55]} Kg8 {[%emt 0:00:15]} 40. Nd4 {[%emt 0:00:15]} Rc1+ {[%emt 0:00:26]} 41. Kg2 {[%emt 0:00:05]} Kf8 {[%emt 0:00:05]} 42. Bd7 {[%emt 0:00:13]} e5 {[%emt 0:00:30]} 43. c7 {[%emt 0:00:10]} 1-0

[Event "XXXI Torre Memorial 2019"]
[Site "Merida"]
[Date "2019.12.18"]
[Round "9.14"]
[White "Ochoa de la Rosa, Manuel Dario"]
[Black "Otero Acosta, Diasmany"]
[Result "1-0"]
[ECO "A46"]
[WhiteElo "2403"]
[BlackElo "2373"]
[Annotator "NA"]
[PlyCount "99"]
[EventDate "2019.12.13"]
[EventType "swiss"]
[EventCountry "MEX"]
[SourceTitle "playchess.com"]
[Source "ChessBase"]
[SourceQuality "1"]
[TimeControl "5400+30"]

1. d4 {[%emt 0:03:59]} Nf6 {[%emt 0:08:09]} 2. Nf3 {[%emt 0:03:41]} e6 {[%emt 0:01:19]} 3. c4 {[%emt 0:00:14]} c5 {[%emt 0:00:08]} 4. e3 {[%emt 0:00:45]} d5 {[%emt 0:01:47]} 5. a3 {[%emt 0:00:20]} Nc6 {[%emt 0:03:48]} 6. Nc3 {[%emt 0:00:32]} cxd4 {[%emt 0:06:26]} 7. exd4 {[%emt 0:00:15]} dxc4 {[%emt 0:00:08]} 8. Bxc4 {[%emt 0:00:07]} Be7 {[%emt 0:00:05]} 9. O-O {[%emt 0:00:16]} O-O {[%emt 0:00:04]} 10. Re1 {[%emt 0:01:09]} Nd5 {[%emt 0:06:24]} 11. Bd3 {[%emt 0:07:25]} Bf6 {[%emt 0:05:19]} 12. Bc2 {[%emt 0:00:28]} g6 {[%emt 0:10:35]} 13. Bh6 {[%emt 0:05:07]} Bg7 {[%emt 0:04:04]} 14. Qd2 {[%emt 0:05:00]} Bd7 {[%emt 0:06:42]} 15. Re4 {[%emt 0:06:28]} Bxh6 {[%emt 0:11:06]} 16. Qxh6 {[%emt 0:00:15]} Qf6 {[%emt 0:00:02]} 17. h4 {[%emt 0:19:31]} Qg7 {[%emt 0:03:11]} 18. Qd2 {[%emt 0:01:50]} h6 {[%emt 0:01:34]} 19. Nxd5 {[%emt 0:09:45]} exd5 {[%emt 0:00:37]} 20. Re3 {[%emt 0:00:03]} Rfe8 {[%emt 0:06:38]} 21. Rae1 {[%emt 0:00:17]} Rxe3 {[%emt 0:07:42]} 22. Rxe3 {[%emt 0:00:10]} Qf6 {[%emt 0:06:44]} 23. h5 {[%emt 0:01:29]} g5 {[%emt 0:00:53]} 24. Ne5 {[%emt 0:00:31]} Be6 {[%emt 0:02:16]} 25. Rf3 {[%emt 0:06:44]} Qg7 {[%emt 0:00:26]} 26. Nxc6 {[%emt 0:00:24]} bxc6 {[%emt 0:00:00]} 27. Rc3 {[%emt 0:00:12]} Bd7 {[%emt 0:00:16]} 28. f4 {[%emt 0:01:11]} Re8 {[%emt 0:01:19]} 29. Rg3 {[%emt 0:00:49]} f6 {[%emt 0:01:38]} 30. Bg6 {[%emt 0:00:04]} Re7 {[%emt 0:02:16]} 31. Rb3 {[%emt 0:01:09]} Qf8 {[%emt 0:00:31]} 32. Rb7 {[%emt 0:02:25]} Bc8 {[%emt 0:02:35]} 33. Rb8 {[%emt 0:00:15]} Rb7 {[%emt 0:00:43]} 34. Ra8 {[%emt 0:00:02]} Kg7 {[%emt 0:00:37]} 35. Bf5 {[%emt 0:00:30]} Bxf5 {[%emt 0:00:27]} 36. Rxf8 {[%emt 0:00:07]} Kxf8 {[%emt 0:00:01]} 37. fxg5 {[%emt 0:02:18]} fxg5 {[%emt 0:00:16]} 38. Qf2 {[%emt 0:00:02]} Rf7 {[%emt 0:00:04]} 39. Qg3 {[%emt 0:00:14]} Kg7 {[%emt 0:01:31]} 40. Qe5+ {[%emt 0:00:37]} Kh7 {[%emt 0:00:35]} 41. Qd6 {[%emt 0:00:04]} Be4 {[%emt 0:00:57]} 42. Qxc6 {[%emt 0:00:04]} Kg7 {[%emt 0:00:33]} 43. Qd6 {[%emt 0:00:22]} Rb7 {[%emt 0:00:32]} 44. b4 {[%emt 0:00:15]} Rb6 {[%emt 0:00:26]} 45. Qd7+ {[%emt 0:00:40]} Kf6 {[%emt 0:00:11]} 46. b5 {[%emt 0:01:24]} g4 {[%emt 0:00:28]} 47. a4 {[%emt 0:00:40]} Kg5 {[%emt 0:00:46]} 48. a5 {[%emt 0:00:10]} Rf6 {[%emt 0:00:14]} 49. Qe7 {[%emt 0:00:31]} Kf5 {[%emt 0:00:24]} 50. Qe5# 1-0

[Event "XXXI Torre Memorial 2019"]
[Site "Merida"]
[Date "2019.12.18"]
[Round "9.15"]
[White "Fernandez Guillen, Ernesto J."]
[Black "Martin Del Campo C., Roberto"]
[Result "1/2-1/2"]
[ECO "B24"]
[WhiteElo "2407"]
[BlackElo "2314"]
[Annotator "NA"]
[PlyCount "65"]
[EventDate "2019.12.13"]
[EventType "swiss"]
[EventCountry "MEX"]
[SourceTitle "playchess.com"]
[Source "ChessBase"]
[SourceQuality "1"]
[TimeControl "5400+30"]

1. e4 {[%emt 0:07:36]} c5 {[%emt 0:09:52]} 2. Nc3 Nc6 {[%emt 0:00:04]} 3. g3 {[%emt 0:00:20]} g6 {[%emt 0:00:03]} 4. Bg2 {[%emt 0:00:04]} Bg7 {[%emt 0:00:04]} 5. Nge2 {[%emt 0:00:05]} d6 {[%emt 0:00:08]} 6. d3 {[%emt 0:00:06]} Nf6 {[%emt 0:00:07]} 7. O-O {[%emt 0:00:06]} O-O {[%emt 0:00:03]} 8. h3 {[%emt 0:00:12]} Rb8 {[%emt 0:00:12]} 9. Be3 {[%emt 0:00:16]} b5 {[%emt 0:00:10]} 10. Qd2 {[%emt 0:00:06]} b4 {[%emt 0:00:06]} 11. Nd1 {[%emt 0:00:05]} Ne8 {[%emt 0:00:04]} 12. f4 {[%emt 0:00:08]} a5 {[%emt 0:00:07]} 13. f5 {[%emt 0:00:12]} a4 {[%emt 0:00:11]} 14. Bh6 {[%emt 0:00:12]} Qb6 {[%emt 0:00:31]} 15. Bxg7 {[%emt 0:00:24]} Kxg7 {[%emt 0:00:04]} 16. Kh2 {[%emt 0:00:16]} Ba6 {[%emt 0:00:17]} 17. Ne3 {[%emt 0:00:11]} Ne5 {[%emt 0:00:17]} 18. Nd5 {[%emt 0:01:31]} Qd8 {[%emt 0:00:04]} 19. Rf4 {[%emt 0:00:34]} Bb7 {[%emt 0:00:53]} 20. Rh4 {[%emt 0:01:04]} Rh8 {[%emt 0:00:12]} 21. Qh6+ {[%emt 0:01:17]} Kg8 {[%emt 0:00:04]} 22. Rf1 {[%emt 0:00:33]} Bxd5 {[%emt 0:00:05]} 23. exd5 {[%emt 0:00:09]} b3 {[%emt 0:00:45]} 24. Nf4 {[%emt 0:01:20]} Ng7 {[%emt 0:00:17]} 25. fxg6 {[%emt 0:01:14]} Nxg6 26. Nxg6 fxg6 27. Rhf4 bxa2 28. Rf7 Nh5 29. g4 Qe8 30. gxh5 Qxf7 31. Rxf7 Kxf7 32. Qf4+ Kg7 33. h6+ {Kf7 Qe3} 1/2-1/2

[Event "XXXI Torre Memorial 2019"]
[Site "Merida"]
[Date "2019.12.18"]
[Round "9.16"]
[White "Elias Reyes, Jorge Roberto"]
[Black "Fernandez Mayola, Reynold Rafael"]
[Result "1-0"]
[ECO "C78"]
[WhiteElo "2379"]
[BlackElo "2328"]
[Annotator "NA"]
[PlyCount "107"]
[EventDate "2019.12.13"]
[EventType "swiss"]
[EventCountry "MEX"]
[SourceTitle "playchess.com"]
[Source "ChessBase"]
[SourceQuality "1"]
[TimeControl "5400+30"]

1. e4 {[%emt 0:00:07]} e5 {[%emt 0:00:00]} 2. Nf3 {[%emt 0:00:08]} Nc6 {[%emt 0:00:00]} 3. Bb5 {[%emt 0:00:15]} a6 {[%emt 0:00:08]} 4. Ba4 {[%emt 0:00:05]} Nf6 {[%emt 0:00:07]} 5. O-O {[%emt 0:00:05]} b5 {[%emt 0:00:06]} 6. Bb3 {[%emt 0:00:07]} Bb7 {[%emt 0:00:02]} 7. d3 {[%emt 0:04:16]} Bd6 {[%emt 0:01:50]} 8. a3 {[%emt 0:03:22]} O-O {[%emt 0:00:12]} 9. Bg5 {[%emt 0:07:34]} h6 {[%emt 0:00:37]} 10. Bh4 {[%emt 0:00:01]} Be7 {[%emt 0:02:46]} 11. Nc3 {[%emt 0:02:48]} d6 {[%emt 0:01:20]} 12. Bxf6 {[%emt 0:09:57]} Bxf6 {[%emt 0:00:08]} 13. a4 {[%emt 0:00:55]} Na5 {[%emt 0:18:23]} 14. axb5 {[%emt 0:13:14]} Nxb3 {[%emt 0:01:06]} 15. cxb3 {[%emt 0:00:09]} axb5 {[%emt 0:00:01]} 16. Rxa8 {[%emt 0:01:12]} Qxa8 {[%emt 0:11:36]} 17. Nxb5 {[%emt 0:00:02]} Qa5 {[%emt 0:00:05]} 18. Na3 {[%emt 0:03:03]} d5 {[%emt 0:08:08]} 19. Qc2 {[%emt 0:05:59]} Qb4 {[%emt 0:04:59]} 20. Nd2 {[%emt 0:08:24]} c6 {[%emt 0:22:41]} 21. Qc3 {[%emt 0:06:45]} Qb6 {[%emt 0:04:47]} 22. Nf3 {[%emt 0:07:02]} Ba6 {[%emt 0:11:30]} 23. Rc1 {[%emt 0:00:50]} d4 {[%emt 0:01:40]} 24. Qc2 {[%emt 0:04:36]} Rb8 {[%emt 0:00:10]} 25. Nd2 {[%emt 0:02:14]} Bg5 {[%emt 0:00:29]} 26. Nac4 {[%emt 0:01:14]} Bxc4 {[%emt 0:01:45]} 27. Nxc4 {[%emt 0:00:06]} Qxb3 {[%emt 0:00:14]} 28. Qxb3 {[%emt 0:00:12]} Rxb3 {[%emt 0:00:02]} 29. Rd1 {[%emt 0:00:00]} Be7 {[%emt 0:05:12]} 30. Nxe5 {[%emt 0:00:59]} Rxb2 {[%emt 0:00:36]} 31. Nxc6 {[%emt 0:00:06]} Bc5 {[%emt 0:00:03]} 32. Ne5 {[%emt 0:01:13]} Bb4 {[%emt 0:00:10]} 33. Nc4 {[%emt 0:00:15]} Ra2 {[%emt 0:00:08]} 34. Rb1 {[%emt 0:00:52]} Bc3 {[%emt 0:00:03]} 35. g3 {[%emt 0:00:28]} Ra6 {[%emt 0:01:24]} 36. Rb8+ {[%emt 0:00:52]} Kh7 {[%emt 0:00:03]} 37. Rb7 {[%emt 0:02:15]} f6 {[%emt 0:00:48]} 38. h4 {[%emt 0:01:07]} Ra1+ {[%emt 0:00:07]} 39. Kg2 {[%emt 0:00:04]} Rd1 {[%emt 0:00:06]} 40. Nd6 {[%emt 0:00:43]} Rxd3 {[%emt 0:00:07]} 41. Nf5 {[%emt 0:01:06]} Rd1 {[%emt 0:00:45]} 42. Rxg7+ {[%emt 0:00:06]} Kh8 {[%emt 0:00:04]} 43. Rd7 {[%emt 0:00:24]} h5 {[%emt 0:00:24]} 44. Rd6 {[%emt 0:00:53]} Kg8 {[%emt 0:02:13]} 45. Rxf6 {[%emt 0:01:23]} d3 {[%emt 0:00:01]} 46. Rd6 {[%emt 0:00:22]} d2 {[%emt 0:00:20]} 47. Ne3 {[%emt 0:00:21]} Re1 {[%emt 0:00:13]} 48. Rd3 {[%emt 0:00:36]} Kf7 {[%emt 0:00:23]} 49. Rd5 {[%emt 0:03:05]} Kg6 {[%emt 0:01:26]} 50. Kf3 {[%emt 0:00:42]} Kf6 {[%emt 0:00:33]} 51. e5+ {[%emt 0:03:17]} Ke6 {[%emt 0:00:17]} 52. Rd6+ {[%emt 0:00:37]} Kxe5 {[%emt 0:00:11]} 53. Nc4+ {[%emt 0:00:05]} Kf5 {[%emt 0:00:11]} 54. Nxd2 1-0

[Event "XXXI Torre Memorial 2019"]
[Site "Merida"]
[Date "2019.12.18"]
[Round "9.17"]
[White "Ordaz Valdes, Lisandra Teresa"]
[Black "Noboa Silva, Kevin"]
[Result "1/2-1/2"]
[ECO "A40"]
[WhiteElo "2376"]
[BlackElo "2306"]
[Annotator "NA"]
[PlyCount "51"]
[EventDate "2019.12.13"]
[EventType "swiss"]
[EventCountry "MEX"]
[SourceTitle "playchess.com"]
[Source "ChessBase"]
[SourceQuality "1"]
[TimeControl "5400+30"]

1. d4 {[%emt 0:00:00]} e6 {[%emt 0:05:39]} 2. c4 {[%emt 0:00:00]} d5 {[%emt 0:00:19]} 3. Nf3 {[%emt 0:00:12]} c5 {[%emt 0:00:07]} 4. e3 {[%emt 0:00:32]} Nc6 {[%emt 0:00:30]} 5. a3 {[%emt 0:00:08]} cxd4 {[%emt 0:04:39]} 6. exd4 {[%emt 0:00:52]} Nf6 {[%emt 0:00:16]} 7. Nc3 {[%emt 0:00:12]} Be7 {[%emt 0:00:39]} 8. Bd3 {[%emt 0:04:56]} dxc4 {[%emt 0:01:25]} 9. Bxc4 {[%emt 0:00:07]} O-O {[%emt 0:00:30]} 10. O-O {[%emt 0:00:19]} b6 {[%emt 0:06:20]} 11. d5 {[%emt 0:08:20]} Na5 {[%emt 0:02:48]} 12. Ba2 {[%emt 0:01:40]} exd5 {[%emt 0:01:09]} 13. Nxd5 {[%emt 0:00:07]} Nxd5 {[%emt 0:01:01]} 14. Bxd5 {[%emt 0:00:07]} Bb7 {[%emt 0:00:47]} 15. Bxb7 {[%emt 0:00:58]} Nxb7 {[%emt 0:00:15]} 16. Be3 {[%emt 0:01:05]} Bf6 {[%emt 0:02:19]} 17. Qe2 {[%emt 0:03:26]} Qe7 {[%emt 0:02:52]} 18. Rac1 {[%emt 0:00:56]} Rfd8 {[%emt 0:05:56]} 19. Rfd1 {[%emt 0:05:18]} Nc5 {[%emt 0:07:52]} 20. Qc2 {[%emt 0:05:39]} Ne6 {[%emt 0:06:53]} 21. b4 {[%emt 0:05:44]} Rxd1+ {[%emt 0:07:40]} 22. Rxd1 {[%emt 0:00:09]} Qb7 {[%emt 0:03:50]} 23. Rc1 {[%emt 0:02:53]} Rd8 {[%emt 0:00:37]} 24. h3 {[%emt 0:01:48]} h6 {[%emt 0:01:49]} 25. a4 {[%emt 0:06:44]} Qd5 {[%emt 0:04:35]} 26. Qc4 {[%emt 0:00:21]} 1/2-1/2